Cogmind - Beta 17 @@@ ROGUE MODE // 2026.07.01 @ 18:32:40 Player: pinbox Result: Self-destructed Performance ------------- Evolutions (2) 1000 Regions Visited (3) 600 Robots Destroyed (19) 95 Value Destroyed (589) 589 Prototype IDs (0) 0 Alien Tech Used (0) 0 Bonus (0) 0 TOTAL SCORE: 2284 Bonus ------- None Cogmind --------- Core Integrity 509/550 Matter 239/300 Energy 250/250 System Corruption 0% Temperature Cool (0) Movement Walking (120) Location -8/Materials Parts ------- > --- POWER (1) -------- Ion Engine > --- PROPULSION (3) --- Aluminum Leg Aluminum Leg Aluminum Leg > --- UTILITY (5) ------ Small Storage Unit Subdweller Optics Improved Sensor Array Improved Signal Interpreter > --- WEAPON (2) ------- Subdweller Beam Cannon Assault Rifle > --- INVENTORY (8) ---- Subdweller Power Source Subdweller Power Source Improved Heat Sink Terrain Scanner Subdweller Laser Faulty Improved Assault Rifle Peak State ------------ > --- POWER ------------ Ion Engine > --- PROPULSION ------- Aluminum Leg Aluminum Leg Aluminum Leg > --- UTILITY ---------- Small Storage Unit Subdweller Optics Improved Sensor Array Improved Signal Interpreter Medium Armor Plating > --- WEAPON ----------- Subdweller Beam Cannon Assault Rifle > --- INVENTORY -------- Subdweller Power Source Subdweller Power Source Improved Heat Sink Terrain Scanner Subdweller Laser [Rating: 19] Favorites ----------- Power Ion Engine Engine Ion Engine Propulsion Aluminum Leg Treads Light Treads Leg Aluminum Leg Utility Small Storage Unit Device Seismic Detector Storage Small Storage Unit Processor Improved Signal Interpreter Protection Medium Armor Plating Weapon Assault Rifle Energy Cannon Subdweller Beam Cannon Ballistic Gun Assault Rifle Build | -11 -10 -10 -8 ------- Run | Yrd Mat Sub Mat Slots Evolved 4 | . . . 4 Power . | . . . . Propulsion 1 | . . . 1 Utility 3 | . . . 3 Weapon . | . . . . Parts Attached 22 | 7 7 2 6 Power 3 | 1 2 . . Engine 3 | 1 2 . . Core . | . . . . Reactor . | . . . . Propulsion 5 | 2 2 . 1 Treads 2 | 2 . . . Leg 3 | . 2 . 1 Wheel . | . . . . Hover . | . . . . Flight . | . . . . Utility 9 | 2 1 1 5 Device 5 | 1 . . 4 Storage 1 | 1 . . . Processor 2 | . . 1 1 Hackware . | . . . . Protection 1 | . 1 . . Artifact . | . . . . Weapon 5 | 2 2 1 . Energy Gun . | . . . . Energy Cannon 1 | . . 1 . Ballistic Gun 4 | 2 2 . . Ballistic Cannon . | . . . . Launcher . | . . . . Special Weapon . | . . . . Impact Weapon . | . . . . Slashing Weapon . | . . . . Piercing Weapon . | . . . . Special Melee Weapon . | . . . . Unidentified Prototypes . | . . . . Parts Lost 6 | . 4 1 1 Power 1 | . 1 . . Propulsion 1 | . 1 . . Utility 2 | . 1 . 1 Weapon 2 | . 1 1 . Highest Loss Streak 3 | . 3 1 1 To Critical Strikes . | . . . . Average Backups 5 | 2 5 5 5 Power . | . . . 2 Propulsion 1 | 1 1 1 . Utility 2 | . 2 3 1 Weapon . | . . . 1 Tool/Special . | . . . . Unused Backups 7 | . 1 1 5 Power 3 | . . 1 2 Propulsion . | . . . . Utility 1 | . . . 1 Weapon 3 | . 1 . 2 Tool/Special . | . . . . Average Slot Usage (%) 98 | . 99 98 97 Engine 13 | . 14 14 9 Treads 12 | . 26 . . Leg 14 | . . 28 26 Device 9 | . 13 . 20 Storage 13 | . 14 13 9 Protection 6 | . . 14 8 Energy Cannon 4 | . . 7 9 Ballistic Gun 21 | . 28 19 9 Peak Build Rating 19 | 7 8 10 19 Average Rating 9 | 4 7 9 17 On Entrance 6 | . 7 8 10 Avg Prop Armor Cover (%) . | . . . . Naked Turns . | . . . . Heaviest Build 31 | 14 21 27 31 Greatest Support 40 | 40 40 20 30 Greatest Overweight (x) 1 | . 1 1 1 Average Overweight (x) . | . . . . Largest Inventory Capacity 8 | 8 8 8 8 Average Capacity 7 | 6 8 7 8 Most Carried 8 | 4 7 8 7 Average Carried 5 | 2 5 6 5 Final Capacity 8 | 8 8 8 8 Final Carried 8 | 4 4 8 6 Class Distribution -------------------- 84% | Mutant 15% | Skirmisher Dominant Class ---------------- Mutant | -10/Materials Mutant | -10/Subcaves Skirmisher | -8/Materials Resources | -11 -10 -10 -8 ----------- Run | Yrd Mat Sub Mat Matter Collected 710 | 199 408 103 . Remotely . | . . . . Salvage Created 675 | 12 409 254 . Parts 39 | 3 20 16 . Haulers Intercepted . | . . . . Recyclers Shooed . | . . . . Parts Field Recycled . | . . . . Retrieved Matter . | . . . . Parts Self-Destructed 12 | . . 12 . Prevented . | . . . . Parts Restored . | . . . . Kills | -11 -10 -10 -8 ------- Run | Yrd Mat Sub Mat Combat Hostiles Destroyed 17 | . 11 6 . Guns 14 | . 11 3 . Cannons 3 | . . 3 . Classes Destroyed 6 | 1 3 2 . Tunneler 1 | 1 . . . Watcher 1 | . 1 . . Swarmer 4 | . 3 1 . Grunt 8 | . 8 . . Sentry 1 | . . 1 . Subdweller 4 | . . 4 . Best Kill Streak 5 | 1 5 2 . Combat Bots Only 5 | . 5 2 . Max Kills in Single Turn 1 | 1 1 1 . Gunslinging . | . . . . Exploded . | . . . . Melee . | . . . . Uniques/NPCs Destroyed . | . . . . Combat | -11 -10 -10 -8 -------- Run | Yrd Mat Sub Mat Hostile Shots Fired 112 | . 80 18 14 Missed 23 | . 12 7 4 Hits 89 | . 68 11 10 Projectile 89 | . 68 11 10 Critical Strikes 2 | . 2 . . Damage Taken 1223 | . 789 272 162 Core 241 | . 119 81 41 Absorbed by Shields . | . . . . Core Remaining (%) 60 | 100 . 20 . Volleys Fired 73 | 4 55 12 2 Largest 2 | 2 2 2 2 Hottest 100 | 40 40 100 100 Shots Fired 143 | 8 109 22 4 Gun 135 | 8 109 16 2 Cannon 8 | . . 6 2 Launcher . | . . . . Special . | . . . . Kinetic 135 | 8 109 16 2 Thermal 8 | . . 6 2 Explosive . | . . . . Electromagnetic . | . . . . Robot Hit Streak 17 | 3 17 6 1 Robot Miss Streak 3 | 2 3 1 1 Penetration Max . | . . . . Secondary Targets 1 | . 1 . . Max Gunslinging Chain 1 | . 1 . . Shots Hit Robots 91 | 4 70 16 1 Core Hits 30 | 1 20 9 . Critical Kills 1 | . 1 . . Critical Parts Destroyed . | . . . . Critical Strikes 1 | . 1 . . Destroy 1 | . 1 . . Melee Attacks . | . . . . Impact . | . . . . Slashing . | . . . . Piercing . | . . . . Sneak Attacks . | . . . . Combat Hostiles . | . . . . Follow-up Attacks . | . . . . Damage Inflicted 1166 | 46 830 279 11 Guns 1026 | 46 830 139 11 Cannons 140 | . . 140 . Explosions . | . . . . Melee . | . . . . Ramming . | . . . . Kinetic 1026 | 46 830 139 11 Thermal 140 | . . 140 . Explosive . | . . . . Electromagnetic . | . . . . Impact . | . . . . Slashing . | . . . . Piercing . | . . . . Highest Corruption . | . . . . Average Corruption . | . . . . Corruption Purged . | . . . . Corruption Blocked . | . . . . Overload Shots . | . . . . Overflow Damage . | . . . . Projectiles . | . . . . Explosions . | . . . . Melee . | . . . . Knockbacks . | . . . . Impact . | . . . . Kinetic . | . . . . Secondary . | . . . . Self-Inflicted Damage . | . . . . Shots . | . . . . Rammed 1 | . 1 . . Targets Rammed 1 | . 1 . . Kicked . | . . . . Crushed . | . . . . Highest Temperature 36 | . 20 5 36 Average Temperature 7 | . 4 3 22 Received Heat Transfer 462 | . 393 42 27 Siege Activations . | . . . . Martial Activations . | . . . . Shielding Activations . | . . . . Robots Disrupted . | . . . . Combat Hostiles . | . . . . Robots Corrupted . | . . . . Combat Hostiles . | . . . . Parts Fried . | . . . . Impact Corruptions . | . . . . Robots Melted . | . . . . Combat Hostiles . | . . . . Parts Melted . | . . . . Heat Transferred 185 | . . 185 . Parts Sabotaged . | . . . . Parts Stolen . | . . . . Parts Stripped . | . . . . Power Chain Reactions . | . . . . Alert | -11 -10 -10 -8 ------- Run | Yrd Mat Sub Mat Maximum Alert Level . | . . . . Low Security (%) 100 | 100 100 . 100 Level 1 . | . . . . Level 2 . | . . . . Level 3 . | . . . . Level 4 . | . . . . Level 5 . | . . . . High Security . | . . . . Max Security . | . . . . Peak Influence 100 | . 100 . 45 Initial . | . . . . Average 19 | . 25 . 10 Influence Increases 430 | 5 324 40 61 Destroy 0b10 Robot/C 260 | . 220 40 . Destroy 0b10 Robot/NC 10 | 5 5 . . Destroy Leader 52 | . 52 . . Successful Hack 17 | . 17 . . Disable Machine 15 | . . . 15 Destroy Structure 1 | . . . 1 Lose Combat Pursuer 75 | . 30 . 45 Influence Decreases 430 | 5 300 64 61 Entered New Map 12 | . . 12 . Time Decay 281 | 5 169 52 55 Lost Part 44 | . 38 . 6 Purge Threat 93 | . 93 . . Squads Dispatched 2 | . 1 . 1 Investigation 1 | . 1 . . Extermination . | . . . . Reinforcement 1 | . . . 1 Assault . | . . . . Garrison . | . . . . Intercept . | . . . . Searches Triggered . | . . . . Construction Impeded . | . . . . Haulers Reinforced . | . . . . Active Scanning Responses . | . . . . Cargo Convoy Interrupts . | . . . . Stealth | -11 -10 -10 -8 --------- Run | Yrd Mat Sub Mat Distress Signals 2 | . 1 . 1 Communications Jammed . | . . . . Distress Signals . | . . . . Times Spotted 35 | . 18 7 10 Peak Tracking Total 7 | . 7 2 6 Tactical Retreats 2 | . 1 . 1 Traps | -11 -10 -10 -8 ------- Run | Yrd Mat Sub Mat Traps Triggered 2 | . 1 1 . Indirectly . | . . . . Trap Hack Attempts . | . . . . Triggered . | . . . . Disarmed . | . . . . Reprogrammed . | . . . . Reused . | . . . . Traps Extracted . | . . . . Installed . | . . . . Triggered . | . . . . Machines | -11 -10 -10 -8 ---------- Run | Yrd Mat Sub Mat Machines Disabled 1 | . . . 1 Max in Single Turn 1 | . . . 1 Machines Repaired . | . . . . Machines Dismantled . | . . . . Machines Sabotaged . | . . . . Overloaded Fab Kills . | . . . . Hacking | -11 -10 -10 -8 --------- Run | Yrd Mat Sub Mat Machines Accessed 5 | . 3 . 2 Terminals 4 | . 2 . 2 Fabricators . | . . . . Repair Stations . | . . . . Recycling Units 1 | . 1 . . Scanalyzers . | . . . . Garrison Access . | . . . . Total Hacks 19 | . 14 . 5 Successful 8 | . 7 . 1 Failed 11 | . 7 . 4 Catastrophic 5 | . 2 . 3 Database Lockouts . | . . . . Manual 15 | . 10 . 5 Terminals 17 | . 12 . 5 Fabricators . | . . . . Repair Stations . | . . . . Recycling Units 2 | . 2 . . Scanalyzers . | . . . . Garrison Access . | . . . . Terminal Hacks 5 | . 5 . . Unreport Threat 1 | . 1 . . Dispatch Records 1 | . 1 . . Hauler Manifests 1 | . 1 . . Registered Components 1 | . 1 . . Zone Layout 1 | . 1 . . Fabricator Hacks . | . . . . Repair Station Hacks . | . . . . Recycling Unit Hacks 1 | . 1 . . Retrieve Components 1 | . 1 . . Scanalyzer . | . . . . Garrison Access Hacks . | . . . . Unauthorized Hacks 2 | . 1 . 1 Terminals 2 | . 1 . 1 Botnet 2 | . 1 . 1 Fabricators . | . . . . Repair Stations . | . . . . Recycling Units . | . . . . Scanalyzers . | . . . . Garrison Access . | . . . . Data Cores Recovered . | . . . . Used . | . . . . Hacking Detections 5 | . 3 . 2 Full Trace Events . | . . . . Feedback Events . | . . . . Feedback Blocked . | . . . . Robot Schematics Acquired . | . . . . Robots Built . | . . . . Authchips . | . . . . Time . | . . . . Total Robot Build Rating . | . . . . Part Schematics Acquired . | . . . . Parts Built . | . . . . Authchips . | . . . . Time . | . . . . Total Part Build Rating . | . . . . Part Studies Acquired . | . . . . Parts Repaired . | . . . . Time . | . . . . Parts Recycled . | . . . . Recycled Matter . | . . . . Retrieved Matter . | . . . . Retrieved Components 6 | . 6 . . Parts Scanalyzed . | . . . . Part Schematics Acquired . | . . . . Parts Damaged . | . . . . Bothacking | -11 -10 -10 -8 ------------ Run | Yrd Mat Sub Mat Used RIF Installer . | . . . . Robots Hacked . | . . . . Non-combat . | . . . . Combat . | . . . . Robot Hacks Applied . | . . . . Relay Couplers Released . | . . . . Fabnet Peak Effective % . | . . . . Robots Rewired . | . . . . Allies Hacked . | . . . . Hacks Repelled . | . . . . Allies | -11 -10 -10 -8 -------- Run | Yrd Mat Sub Mat Total Allies . | . . . . Largest Group . | . . . . Highest-Rated Group . | . . . . Highest-Rated Ally . | . . . . Total Orders . | . . . . Ally Attacks . | . . . . Total Damage . | . . . . Kills . | . . . . Allies Corrupted . | . . . . Allies Melted . | . . . . Intel | -11 -10 -10 -8 ------- Run | Yrd Mat Sub Mat Active Infowar (turns) 846 | 37 598 1 210 Optics 210 | . . . 210 Sensors 209 | . . . 209 Terrain 66 | . . . 66 Seismic 635 | 37 598 . . Machine Analysis 1 | . . 1 . Robot Analysis Total . | . . . . Derelict Logs Recovered 1 | . . 1 . Drone Launches . | . . . . Drone Recoveries . | . . . . Exploration | -11 -10 -10 -8 ------------- Run | Yrd Mat Sub Mat Turns Passed 1436 | 125 626 475 210 Spaces Moved 693 | 64 263 222 144 Core 2 | 2 . . . Treads 317 | 62 255 . . Legs 374 | . 8 222 144 Wheels . | . . . . Hover . | . . . . Flight . | . . . . Fastest Speed 50 | 50 160 120 120 Average Speed 163 | 156 160 185 135 Slowest Speed 190 | 160 190 190 190 Overloaded Moves . | . . . . Propulsion Burnouts . | . . . . Robots Hopped . | . . . . Potential Cave-ins . | . . . . Cave-ins Triggered . | . . . . Exploration Rate (%) 19 | 4 43 14 17 Regions Visited 3 Branch Regions 1 Pre-discovered Areas 1 | . . 1 . Known Exits Taken . | . . . . Unknown Exits Taken 3 | 1 1 1 . Scrap Searched . | . . . . Spaces Dug . | . . . . Terrain Destroyed 1 | . . . 1 Melee . | . . . . Projectile 1 | . . . 1 AOE . | . . . . Terrain Rammed . | . . . . Walls Destroyed . | . . . . Machines Disabled . | . . . . Actions | -11 -10 -10 -8 --------- Run | Yrd Mat Sub Mat Total 857 | 78 360 264 155 Wait 38 | . 24 14 . Move 690 | 63 262 221 144 Hop . | . . . . Pick Up 18 | 4 5 8 1 Fast Attach 11 | 7 1 2 1 Attach 9 | . 4 1 4 Detach 4 | . 1 2 1 Swap 4 | . 3 . 1 Drop 9 | . 4 4 1 Fire 73 | 4 55 12 2 Melee . | . . . . Ram . | . . . . Kick . | . . . . Crush 1 | . 1 . . Escape Stasis . | . . . . Rewire . | . . . . Trap . | . . . . Miscellaneous . | . . . . Route ------- -11/Scrapyard -10/Materials -10/Subcaves -8/Materials History --------- Turn | Location | Event 9 | -11/Scrapyard | Discovered new exit (range 14) 126 | -11/Scrapyard | Entered Materials 301 | -10/Materials | Build established: Mutant 740 | -10/Materials | Discovered new exit (range 6) 752 | -10/Materials | Entered Subcaves 753 | -10/Subcaves | Approached by a straggling Scientist 755 | -10/Subcaves | Lost 3 parts (1p1n1u) 792 | -10/Subcaves | Core integrity fell below 50% 824 | -10/Subcaves | Learned location of Zion (-6) 869 | -10/Subcaves | A swath of the cavern ceiling suddenly collapsed 1109 | -10/Subcaves | Discovered new exit (range 11) 1227 | -10/Subcaves | Entered Materials 1227 | -8/Materials | Evolved 4 slots: Propulsion x1, Utility x3 1437 | -8/Materials | Self-destructed Last Messages --------------- Testing... Terminal linked with 0 systems. Awaiting botnet instructions. 01287_ TF Node disabled. 01287_ Imp. Sensor Array tumbles out of TF Node. 01287_ Imp. Signal Interpreter tumbles out of TF Node. 01293_ Dropped Sensor Array. 01296_ Acquired Imp. Signal Interpreter. 01311_ Acquired Prototype Ballistic Gun. 01387_ K-01 Serf collects debris. 01410_ O-16 Technician: "IFF HANDSHAKE FAILED. SECURING TERMINAL." 01416_ W-25 Informer sends out distress signal. 01421_ Connecting with Terminal... 01421_ ALERT: Hostiles spotted, dispatching reinforcements to Terminal M006. 01427_ Med. Armor Plating destroyed. 01436_ Penetrated by Slug. 01436_ Terminal disabled. Map ----- +----------------------------------------------------+ | #######+######## #???# """ + #???#??#???????? | | #???# # #??????????????? | | #???# """ # #??????????????? | | #####+#### ##### """ # #??????????????? | | ??# ?# + """ # #??????????????? | | ??# # ########## # #??????????????? | | ??#"" # ######???########## #??????????????? | | ??#"Y + #####????????# #??????????????? | | ??#"" # # ???? ??????????????? | | ??# ! # # ??????????????? | | ??######?# # ? ??????????????? | | ?????????# # ##########+#?##+###?????????????? | | ?????????# ## ##?????????????? ????????????????? | | ??????####+## #??????????????? ????????????????? | | ??????# # #????????????????????????????????? | | ??????# + #????????????????????????????????? | | ??????# # #????????????????????????????????? | | ??????# # #????????????????????????????????? | | ??????####### ##?????###+###???????????????????? | | ???????????# k ####### #???????????????????? | | ???????????# #???????????????????? | | ???????????# #???????????????????? | | ???????????# Y """ #???????????????????? | | ???????????# !# "T #???????????????????? | | ???????????####### ##???????????????????? | | ?????????????????# @ #????????????????????? | | ?????????????????# """ #????????????????????? | | ?????????????????# """ h ?????????????????? | | ?????????????????# """ # " "??????????????? | | ?????????????????# w # #????????????? | | ?????????????????# w #?#######????????????? | | ?????????????????# #####Y;#????????????????????? | | ?????????????????# #??? ????????????????????? | | ?????????????????# #??? ""???????????????????? | | ????????????????# ??? """??????????????????? | | ????????????????# ??? """??????????????????? | | ????????????????# ??? """??????????????????? | | ????????????????# ???" ""???????????????????? | | ????????????????# #??" ????????????????????? | | ????????????????## ##?? [ ????????????????????? | | ?????????????????# #???### ????????????????????? | | ?????????????????# ???????##???????????????????? | | ?????????????????+ ????????????????????????????? | | ?????????????????# ????????????????????????????? | | ?????????????????? ????????????????????????????? | | ?????????????????????????????????????????????????? | | ?????????????????????????????????????????????????? | | ?????????????????????????????????????????????????? | | ?????????????????????????????????????????????????? | | ?????????????????????????????????????????????????? | +----------------------------------------------------+ Best States ------------- Heat Dissipation 31 Energy Generation 10 Energy Capacity 250 Matter Stores 300 Matter Capacity 300 Sight Range 21 Robot Scan Range 15 Terrain Scan Range 14 Terrain Scan Density 10 Armor Coverage 225 Evasion (%) 55 Recoil Reduction 2 Item Schematics ----------------- None Robot Schematics ------------------ None Fabricated ------------ Nothing Repaired ---------- Nothing Studied --------- None Alien Tech Used ----------------- None Achievements -------------- None Challenges ------------ None Game ------ Seed HypercooledFluxSpear Manual? 0 Play Time 00:21:43 Cumulative 24.4 hours Start 2026.07.01 @ 18:10:58 End 2026.07.01 @ 18:32:40 Sessions 1 Manual Loads 0 Difficulty Rogue Special Mode None Game No. 26 Rogue 26 Adventurer 0 Explorer 0 Win Type - Total 1 Types 1/0/0/0/0/0/0/0/0/0 Lore% 14 Gallery% 25 Achievement% 22 Wizard Run 0 Options --------- Layout 1 ASCII 0 Keyboard 1 Movement Mouse Keybinds 1 Fullscreen 2 Font 24/Smallcaps Map View 50x40 Zoom Use 0% Tactical HUD 1 Map Filters NONE Filters NONE Steam 1 RUN: 26aa0a8b-fdda-424f-89a0-5bc80463ad7f